bitfinex/quotes_ETHUSD_20230830
["timestamp","ask_amount","ask_price","bid_price","bid_amount"]
[1693416588233,5.86307,1705.6,1705.4,0.79372907]
[1693416588414,11.72614,1705.6,1705.4,0.79372907]
[1693416588810,11.72614,1705.6,1705.5,0.00449392]
[1693416589245,14.59962065,1705.6,1705.5,0.00449392]
[1693416589744,16.97872572,1705.6,1705.5,0.79326712]
[1693416589937,16.97872572,1705.6,1705.2,14.24588]
[1693416590244,8.73702065,1705.5,1705.2,14.24588]
[1693416592924,8.73702065,1705.5,1705.3,0.00450996]
[1693416596646,16.03556065,1705.5,1705.3,0.00450996]
[1693416597550,7.29872,1705.4,1705.3,0.00450996]
[1693416597720,7.29872,1705.4,1705.0,8.38882]
[1693416597721,10.17220065,1705.4,1705.0,8.38882]
[1693416597923,17.78299472,1705.4,1705.0,8.38882]
[1693416598532,11.91927472,1705.4,1705.0,8.38882]
[1693416598723,10.17220065,1705.4,1705.0,14.25392]
[1693416598921,10.17220065,1705.4,1705.1,0.00452601]
[1693416599221,10.17220065,1705.4,1705.1,5.86922601]
[1693416599910,2.87348065,1705.3,1705.1,5.86922601]
[1693416600430,8.73756065,1705.3,1705.1,0.00452601]
[1693416600624,0.87375607,1705.2,1705.1,0.00452601]
[1693416600824,9.61164672,1705.2,1705.1,0.00452601]
[1693416601450,3.74723672,1705.2,1705.1,0.00452601]
[1693416601857,3.74723672,1705.2,1705.1,5.86927601]
[1693416602171,2.87348065,1705.2,1705.1,5.86927601]
[1693416603471,2.87348065,1705.2,1705.1,0.00452601]
[1693416604573,8.73789065,1705.2,1705.1,0.00452601]
[1693416604775,7.29908,1705.3,1705.1,0.00452601]
[1693416604776,5.86347,1705.5,1705.1,0.00452601]
[1693416604986,8.52772736,1705.7,1705.1,17.59877601]
[1693416605180,8.52772736,1705.7,1705.2,1.7598776]
[1693416605181,5.86285,1705.7,1705.2,1.7598776]
[1693416605349,5.86285,1705.7,1705.3,11.72778]
[1693416607759,2.87348065,1705.6,1705.3,5.86389]
[1693416607975,5.86338,1705.5,1705.2,8.24585]
[1693416608560,7.29826,1705.6,1705.2,8.24585]
[1693416608766,13.16059,1705.7,1705.2,19.97467]
[1693416608964,10.17120065,1705.7,1705.2,19.97467]
[1693416609357,7.29772,1705.7,1705.2,19.97467]
[1693416610186,7.29772,1705.7,1705.3,1.997467]
[1693416610386,5.86272,1705.7,1705.4,5.86365]
[1693416614896,11.22987736,1706.0,1705.4,19.02609]
[1693416615101,14.10335801,1706.0,1705.4,19.02609]
[1693416615299,18.73525065,1706.0,1705.5,2.5092]
[1693416615598,18.73525065,1706.0,1705.6,11.72576]
[1693416615599,24.59702065,1706.0,1705.6,11.72576]
[1693416615784,25.827068,1706.0,1705.6,11.72576]
[1693416616497,24.59702065,1706.0,1705.6,11.72576]
[1693416616700,27.262068,1706.0,1705.6,11.72576]
[1693416616903,27.262068,1706.0,1705.6,5.86286]
[1693416616904,4.30848065,1705.9,1705.6,5.86286]
[1693416617101,10.17079065,1705.9,1705.6,5.86286]
[1693416617306,16.03310065,1705.9,1705.6,5.86286]
[1693416617506,17.93250065,1705.9,1705.5,15.04042055]
[1693416617875,12.07019065,1705.9,1705.5,15.04042055]
[1693416620385,10.63519065,1705.9,1705.5,17.28620361]
[1693416623781,10.63519065,1705.9,1705.5,15.04042055]
[1693416623975,10.63519065,1705.9,1705.5,9.17712055]
[1693416624182,16.49719065,1705.9,1705.5,9.17712055]
[1693416628465,10.63488065,1705.9,1705.5,15.04050055]
[1693416629627,16.49688065,1705.9,1705.5,15.04050055]
[1693416629825,19.99925045,1705.9,1705.5,15.04050055]
[1693416630538,14.13725045,1705.9,1705.5,15.04050055]
[1693416630721,19.99925045,1705.9,1705.5,15.04050055]
[1693416630925,19.99925045,1705.9,1705.5,9.17712055]
[1693416631620,21.43425045,1705.9,1705.5,9.17712055]
[1693416632635,5.86269,1705.7,1705.5,3.31391055]
[1693416635163,7.21265288,1705.8,1705.5,9.17724055]
[1693416635340,10.08613353,1705.8,1705.5,9.17724055]
[1693416637467,8.73590065,1705.8,1705.5,9.17724055]
[1693416637667,8.73590065,1705.8,1705.5,15.04062055]
[1693416638765,8.73590065,1705.8,1705.5,9.17724055]
[1693416638966,14.59840065,1705.8,1705.5,9.17724055]
[1693416639633,2.87348065,1705.7,1705.5,9.17724055]
[1693416640938,2.87348065,1705.7,1705.5,3.31391055]
[1693416641146,8.73622065,1705.7,1705.5,3.31391055]
[1693416642068,8.73622065,1705.7,1705.5,9.17723055]
[1693416643176,8.73622065,1705.7,1705.5,3.31391055]
[1693416643331,10.78234371,1705.7,1705.5,3.31391055]
[1693416644173,10.78234371,1705.7,1705.5,0.80471055]
[1693416647457,10.78234371,1705.7,1705.5,6.66808055]
[1693416647988,10.78234371,1705.7,1705.5,0.80471055]
[1693416649594,8.73622065,1705.7,1705.5,0.80471055]
[1693416650294,7.0923632,1705.8,1705.5,6.66805055]
[1693416650504,5.86242,1705.8,1705.5,12.53143055]
[1693416651369,2.87348065,1705.8,1705.5,12.53143055]
[1693416651754,8.73593065,1705.8,1705.5,12.53143055]
[1693416655809,8.73593065,1705.8,1705.5,14.98313055]
[1693416656581,14.59838065,1705.8,1705.5,9.11975055]
[1693416656890,17.10086904,1705.8,1705.5,9.11975055]
[1693416657713,2.87348065,1705.7,1705.5,3.25641055]
[1693416657894,10.17145065,1705.7,1705.5,0.80471055]
[1693416658720,11.40139385,1705.7,1705.5,0.80471055]
[1693416658885,10.17145065,1705.7,1705.5,0.80471055]
[1693416659224,11.40139385,1705.7,1705.5,0.80471055]
[1693416659380,11.40139385,1705.7,1705.5,6.66807055]
[1693416659381,10.17145065,1705.7,1705.5,6.66807055]
[1693416660412,10.17145065,1705.7,1705.5,9.05607055]
[1693416661916,8.73645065,1705.7,1705.5,9.05607055]
[1693416664526,5.86297,1705.7,1705.5,9.05607055]
[1693416664727,7.0923932,1705.8,1705.5,10.54802561]
[1693416664935,9.96587385,1705.8,1705.5,10.54802561]
[1693416665697,9.96587385,1705.8,1705.5,9.05607055]
[1693416665897,15.82839385,1705.8,1705.5,9.05607055]
[1693416669938,15.82839385,1705.8,1705.6,0.00376094]
[1693416670133,2.87348065,1705.7,1705.6,0.82233411]
[1693416670316,8.73617065,1705.7,1705.6,0.82233411]
[1693416672242,10.31902704,1705.7,1705.6,0.82233411]
[1693416673638,1.2299432,1705.8,1705.6,12.54839411]
[1693416673810,2.87348065,1705.8,1705.6,12.54839411]
[1693416680168,14.59157221,1706.0,1705.6,18.41142411]
[1693416680466,15.92762385,1706.0,1705.8,5.86235]
[1693416680829,15.92762385,1706.0,1705.9,0.00373448]
[1693416681068,15.92762385,1706.0,1705.9,5.86573448]
[1693416681244,14.10342385,1706.0,1705.9,5.86573448]
[1693416682433,12.87348065,1706.0,1705.9,6.68284352]
[1693416682655,14.10342385,1706.0,1705.9,6.68284352]
[1693416683371,12.87348065,1706.0,1705.9,6.68284352]
[1693416686438,10.0,1706.0,1705.9,6.68284352]
[1693416693657,10.0,1706.0,1705.9,12.54484352]
[1693416693960,10.0,1706.0,1705.9,14.38553687]
[1693416694865,9.95,1706.0,1705.9,14.38553687]
[1693416696533,9.95,1706.0,1705.9,20.24753687]
[1693416710156,9.95,1706.0,1705.9,6.68284352]
[1693416715658,9.95,1706.0,1705.9,12.54484352]
[1693416719355,9.95,1706.0,1705.9,6.68284352]
[1693416720364,15.81166,1706.0,1705.9,0.82084352]
[1693416720536,15.17027465,1706.0,1705.9,0.82084352]
[1693416722962,21.03193465,1706.0,1705.9,0.82084352]
[1693416732990,26.89359465,1706.0,1705.9,0.82084352]
[1693416736563,21.03193465,1706.0,1705.9,0.82084352]
[1693416737388,26.89359465,1706.0,1705.9,0.82084352]
[1693416737552,21.03193465,1706.0,1705.9,0.82084352]
[1693416739562,22.26236398,1706.0,1705.9,0.82084352]
[1693416739762,21.03193465,1706.0,1705.9,0.82084352]
[1693416739958,22.26236398,1706.0,1705.9,0.82084352]
[1693416740152,21.03193465,1706.0,1705.9,0.82084352]
[1693416740353,35.42068398,1706.0,1705.9,0.82084352]
[1693416740762,29.55902398,1706.0,1705.9,0.82084352]
[1693416741377,35.42068398,1706.0,1705.9,0.82084352]
[1693416747493,29.55902398,1706.0,1705.9,0.82084352]
[1693416747702,24.54680065,1706.0,1705.9,0.82084352]
[1693416748262,24.54680065,1706.0,1705.9,0.00373448]
[1693416748863,24.54680065,1706.0,1705.7,3.9906]
[1693416749097,2.87348065,1705.9,1705.7,9.85324]
[1693416749286,8.73560065,1705.9,1705.8,0.75137853]
[1693416749966,8.73560065,1705.9,1705.8,0.75512103]
[1693416751294,17.05244672,1705.9,1705.8,0.75512103]
[1693416754207,14.59772065,1705.9,1705.8,0.75512103]
[1693416754402,8.73560065,1705.9,1705.8,0.75512103]
[1693416771668,14.59760065,1705.9,1705.8,0.75512103]
[1693416771833,20.45960065,1705.9,1705.8,0.75512103]
[1693416772040,21.69002998,1705.9,1705.8,0.75512103]
[1693416772341,25.73750264,1705.9,1705.8,0.0037425]
[1693416772565,26.21750264,1705.9,1705.8,0.0037425]
[1693416772779,27.98780264,1705.9,1705.8,0.0037425]
[1693416772985,27.98780264,1705.9,1705.4,2.3804]
[1693416773569,27.98780264,1705.9,1705.5,0.72716698]
[1693416773765,11.72538,1705.7,1705.5,0.72716698]
[1693416773980,8.73651065,1705.6,1705.5,0.73078619]
[1693416775581,2.87348065,1705.6,1705.5,0.73078619]
[1693416776571,8.73651065,1705.6,1705.5,0.73078619]
[1693416798332,5.86269,1705.7,1705.5,0.73078619]
[1693416798537,8.73617065,1705.7,1705.5,1.62824981]
[1693416799941,2.87348065,1705.6,1705.5,0.73078619]
[1693416800146,14.59954065,1705.6,1705.5,0.73078619]
[1693416814421,8.73651065,1705.6,1705.5,0.73078619]
[1693416814622,5.86269,1705.7,1705.5,6.59416619]
[1693416814821,8.73617065,1705.7,1705.5,6.59416619]
[1693416815049,11.72419,1705.9,1705.6,0.65941662]
[1693416815251,2.87348065,1705.8,1705.6,6.52219662]
[1693416815451,2.87348065,1705.8,1705.7,0.72624325]
[1693416815956,8.73584065,1705.8,1705.7,0.00347086]
[1693416816950,8.73584065,1705.8,1705.6,8.39828]
[1693416817264,10.19562572,1705.8,1705.6,2.5355]
[1693416817472,10.19562572,1705.8,1705.4,8.26638]
[1693416817473,16.05798572,1705.8,1705.4,8.26638]
[1693416817639,21.92034572,1705.8,1705.7,0.72624325]
[1693416817824,23.72404572,1705.8,1705.7,0.72624325]
[1693416818029,23.72404572,1705.8,1705.4,14.12995]
[1693416818030,21.92034572,1705.8,1705.4,14.12995]
[1693416818663,23.72404572,1705.8,1705.4,14.12995]
[1693416819940,17.86168572,1705.8,1705.5,0.00335032]
[1693416820239,17.86168572,1705.8,1705.5,5.86667032]
[1693416823268,10.53954065,1705.8,1705.5,5.86667032]
[1693416826176,16.40189065,1705.8,1705.5,5.86667032]
[1693416827678,16.40189065,1705.8,1705.5,0.00335032]
[1693416828702,22.26424065,1705.8,1705.5,0.00335032]
[1693416829987,16.40188065,1705.8,1705.5,0.00335032]
[1693416831368,18.79914414,1705.8,1705.5,0.00335032]
[1693416832773,18.79914414,1705.8,1705.6,0.72662631]
[1693416832974,16.99544414,1705.8,1705.6,0.72662631]
[1693416833174,14.59818065,1705.8,1705.6,3.21552631]
[1693416833975,14.59818065,1705.8,1705.7,0.00333292]
[1693416833976,8.73583065,1705.8,1705.7,0.00333292]
[1693416834875,8.73583065,1705.8,1705.6,3.21552631]
[1693416835079,14.59818065,1705.8,1705.6,3.21552631]
[1693416837916,14.59818065,1705.8,1705.7,0.00333292]
[1693416838888,14.59818065,1705.8,1705.6,3.21552631]
[1693416839822,14.59818065,1705.8,1705.7,0.00333292]
[1693416840891,14.59818065,1705.8,1705.6,3.21552631]
[1693416841821,14.59818065,1705.8,1705.7,0.00333292]
[1693416842221,16.94454965,1705.8,1705.7,0.00333292]
[1693416842847,16.94454965,1705.8,1705.6,3.21552631]
[1693416843005,14.59818065,1705.8,1705.6,3.21552631]
[1693416843845,14.59818065,1705.8,1705.7,0.00320141]
[1693416845044,14.59818065,1705.8,1705.6,3.21552631]
[1693416845813,14.59818065,1705.8,1705.7,0.00320141]
[1693416846858,14.59818065,1705.8,1705.6,3.21552631]
[1693416847847,14.59818065,1705.8,1705.7,0.00320141]
[1693416848468,14.59818065,1705.8,1705.7,0.72936589]
[1693416855062,8.73583065,1705.8,1705.7,0.72936589]
[1693416855251,22.90413933,1706.0,1705.7,6.91388248]
[1693416855426,2.87348065,1705.9,1705.7,6.91388248]
[1693416855751,8.73550065,1705.9,1705.7,6.91388248]
[1693416855959,9.95,1706.0,1705.8,1.435]
[1693416856452,9.95,1706.0,1705.8,9.74952]
[1693416856644,9.95,1706.0,1705.9,0.974952]
[1693416856954,9.95,1706.0,1705.9,0.97813738]
[1693416861318,9.95,1706.0,1705.9,6.84013738]
[1693416862560,9.95,1706.0,1705.9,7.56537836]
[1693416882032,9.95,1706.0,1705.9,6.59042636]
[1693416898439,9.95,1706.0,1705.9,0.72842636]
[1693416904091,18.68514065,1706.0,1705.9,0.72842636]
[1693416905153,24.54680065,1706.0,1705.9,0.72842636]
[1693416905354,25.77722998,1706.0,1705.9,0.72842636]
[1693416905555,29.42100165,1706.0,1705.9,0.72842636]
[1693416906989,35.28266165,1706.0,1705.9,0.72842636]
[1693416907188,29.42100165,1706.0,1705.9,0.72842636]
[1693416909155,35.28266165,1706.0,1705.9,0.72842636]
[1693416909359,28.19057232,1706.0,1705.9,0.72842636]
[1693416932237,41.94026899,1706.0,1705.1,10.95873057]
[1693416932558,41.94026899,1706.0,1705.1,7.39321012]
[1693416932559,4.30848065,1705.7,1705.1,7.39321012]
[1693416932763,19.02486,1705.6,1705.1,8.44801]
[1693416932972,2.87348065,1705.5,1705.2,0.00408801]
[1693416933146,17.59116,1705.4,1705.2,0.00408801]
[1693416933345,2.87348065,1705.3,1705.2,0.00408801]
[1693416933562,8.73755065,1705.3,1705.2,0.00408801]
[1693416934030,8.73755065,1705.3,1705.1,2.5833]
[1693416934948,8.73755065,1705.3,1705.2,0.00408801]
[1693416935936,8.73755065,1705.3,1705.1,8.44798]
[1693416936956,8.73755065,1705.3,1705.2,0.00408801]
[1693416937962,8.73755065,1705.3,1705.1,8.44798]
[1693416939167,8.73755065,1705.3,1705.2,0.00408801]
[1693416939870,8.73755065,1705.3,1705.1,8.44798]
[1693416940268,8.73755065,1705.3,1705.2,0.52054619]
[1693416940581,8.73755065,1705.3,1705.1,8.44798]
[1693416941076,8.73755065,1705.3,1705.2,0.00408801]
[1693416941941,8.73755065,1705.3,1705.1,8.44798]
[1693416942978,8.73755065,1705.3,1705.2,0.00408801]
[1693416944073,8.73755065,1705.3,1705.1,8.44798]
[1693416944877,8.73755065,1705.3,1705.2,0.00408801]
[1693416945884,8.73755065,1705.3,1705.1,14.31266]
[1693416946063,8.73755065,1705.3,1705.1,15.907096]
[1693416946899,8.73755065,1705.3,1705.2,0.00408801]
[1693416948006,8.73755065,1705.3,1705.1,14.31266]
[1693416948886,8.73755065,1705.3,1705.2,0.00408801]
[1693416949887,8.73755065,1705.3,1705.1,14.31266]
[1693416950088,8.73755065,1705.3,1705.1,15.907096]
[1693416950978,8.73755065,1705.3,1705.2,0.00408801]
[1693416952006,8.73755065,1705.3,1705.1,8.44798]
[1693416952375,8.73755065,1705.3,1705.2,0.52054619]
[1693416952789,8.73755065,1705.3,1705.1,14.31255]
[1693416952975,8.73755065,1705.3,1705.2,0.00408801]
[1693416953973,8.73755065,1705.3,1705.1,14.31255]
[1693416954171,8.73755065,1705.3,1705.1,8.44787]
[1693416954980,8.73755065,1705.3,1705.2,0.00408801]
[1693416955904,8.73755065,1705.3,1705.1,8.44787]
[1693416956108,8.73755065,1705.3,1705.1,14.31247]
[1693416956410,8.73755065,1705.3,1705.1,8.44787]
[1693416956911,8.73755065,1705.3,1705.1,2.5833]
[1693416957107,10.06841477,1705.3,1705.2,0.00408801]
[1693416957878,10.06841477,1705.3,1705.1,8.44804]
[1693416958908,10.06841477,1705.3,1705.2,0.00408801]
[1693416959112,8.73755065,1705.3,1705.2,0.00408801]
[1693416959903,8.73755065,1705.3,1705.1,14.31278]
[1693416961023,8.73755065,1705.3,1705.2,0.00408801]
[1693416962025,8.73755065,1705.3,1705.1,14.31278]
[1693416962938,8.73755065,1705.3,1705.2,0.00408801]
[1693416963943,8.73755065,1705.3,1705.1,14.31278]
[1693416965021,2.87348065,1705.3,1705.2,0.00408801]
[1693416965950,2.87348065,1705.3,1705.1,14.31278]
[1693416966110,2.87348065,1705.3,1705.1,15.907228]
[1693416966944,2.87348065,1705.3,1705.2,0.00408801]
[1693416967542,2.87348065,1705.3,1705.2,0.5246342]
[1693416975872,8.73755065,1705.3,1705.2,0.5246342]
[1693416977179,14.60162065,1705.3,1705.2,0.5246342]
[1693416977380,22.70456472,1705.3,1705.2,0.5246342]
[1693416978302,16.84049472,1705.3,1705.2,0.5246342]
[1693416982605,22.70456472,1705.3,1705.2,0.5246342]
[1693416983792,16.84049472,1705.3,1705.2,0.5246342]
[1693416987971,22.70456472,1705.3,1705.2,0.5246342]
[1693416990304,24.13956472,1705.3,1705.2,0.5246342]
[1693416990644,25.84885617,1705.3,1705.2,0.5246342]
[1693416991827,24.61956472,1705.3,1705.2,0.5246342]
[1693416992011,24.61956472,1705.3,1704.6,8.29263]
[1693416992219,7.25043712,1705.2,1704.6,8.29263]
[1693416992418,17.59509,1705.1,1704.7,0.49284318]
[1693416992620,2.87348065,1705.0,1704.7,0.49284318]
[1693416992809,5.86544,1704.9,1704.7,0.49284318]
[1693416993010,2.87348065,1704.8,1704.7,0.49284318]
[1693416994010,2.87348065,1704.8,1704.7,6.35897318]
[1693416995940,2.87348065,1704.8,1704.7,6.36294101]
[1693416997470,2.87348065,1704.8,1704.7,0.49681101]
[1693417001473,8.73927065,1704.8,1704.7,0.49681101]
[1693417003178,2.87348065,1704.8,1704.7,0.49681101]
[1693417009960,8.73927065,1704.8,1704.7,0.49681101]
[1693417019197,2.87348065,1704.8,1704.7,0.49681101]
[1693417019516,8.73927065,1704.8,1704.7,0.49681101]
[1693417019918,5.86512,1705.0,1704.7,6.36294101]
[1693417020105,8.73860065,1705.0,1704.7,7.97197911]
[1693417020313,8.73860065,1705.0,1704.7,13.83810911]
[1693417022509,8.73860065,1705.0,1704.7,6.36294101]
[1693417022818,14.60387065,1705.0,1704.7,6.36294101]
[1693417027540,16.55087065,1705.0,1704.7,6.36294101]
[1693417066648,5.86492,1705.1,1704.7,6.36294101]
[1693417066851,5.8646,1705.2,1704.8,1.0194518]
[1693417066997,14.60274065,1705.2,1704.9,5.86542]
[1693417067402,14.60274065,1705.2,1704.9,6.40823133]
[1693417068054,14.60274065,1705.2,1705.0,0.00394354]
[1693417072648,14.60274065,1705.2,1705.1,0.54226967]
[1693417073062,14.60274065,1705.2,1705.1,0.54620512]
[1693417078488,5.8646,1705.2,1705.1,0.85520563]
[1693417078688,1.22929145,1705.4,1705.1,0.85520563]
[1693417078689,5.86341,1705.5,1705.1,14.01970563]
[1693417078855,14.60049065,1705.5,1705.1,14.01970563]
[1693417079185,14.60049065,1705.5,1705.2,2.3897]
[1693417079351,14.60049065,1705.5,1705.2,9.89486056]
[1693417080048,14.60049065,1705.5,1705.3,0.00391926]
[1693417080248,8.73689065,1705.5,1705.3,5.86792926]
[1693417087650,8.73689065,1705.5,1705.4,0.54048194]
[1693417088056,8.73689065,1705.5,1705.4,0.54439311]
[1693417095297,2.87348065,1705.5,1705.4,0.54439311]
[1693417097208,13.67113,1705.6,1705.4,0.54439311]
[1693417097399,16.54461065,1705.6,1705.4,0.54439311]
[1693417106219,10.68139065,1705.6,1705.4,0.54439311]
[1693417123237,11.91087316,1705.6,1705.4,0.54439311]
[1693417133070,11.91087316,1705.6,1705.4,2.89789311]
[1693417134658,20.29144979,1705.6,1705.4,2.89789311]
[1693417138773,17.77409316,1705.6,1705.4,2.89789311]
[1693417141371,17.77409316,1705.6,1705.4,0.54439311]
[1693417141595,7.0748163,1705.5,1705.4,0.54439311]
[1693417141880,23.43547379,1705.5,1705.4,0.00391117]
[1693417142079,23.43547379,1705.5,1705.0,5.86507]
[1693417142277,1.435,1705.3,1705.0,5.86507]
[1693417142576,2.87348065,1705.2,1705.1,0.51192581]
[1693417142876,8.73793065,1705.2,1705.1,0.51192581]
[1693417143046,2.87348065,1705.2,1705.1,0.51527279]
[1693417143607,8.73789065,1705.2,1705.1,0.51527279]
[1693417147867,2.87348065,1705.2,1705.1,0.51527279]
[1693417150522,1.435,1705.4,1705.1,1.15329007]
[1693417150523,5.8639,1705.4,1705.1,1.15329007]
[1693417150681,8.73738065,1705.4,1705.1,9.44334007]
[1693417152978,14.60128065,1705.4,1705.1,9.43999309]
[1693417154033,14.60128065,1705.4,1705.2,0.00321196]
[1693417154916,14.60128065,1705.4,1705.3,0.5113355]
[1693417155510,14.60128065,1705.4,1705.1,8.92806728]
[1693417155713,14.60128065,1705.4,1705.2,0.89280673]
[1693417156121,5.8639,1705.4,1705.2,0.89645723]
[1693417157220,11.7278,1705.4,1705.2,0.89645723]
[1693417159223,14.60128065,1705.4,1705.2,0.0036505]
[1693417159922,14.60128065,1705.4,1705.1,2.4253]
[1693417160675,16.49718065,1705.4,1705.1,2.4253]
[1693417160968,16.49718065,1705.4,1705.2,0.0036505]
[1693417161969,16.49718065,1705.4,1705.1,2.4253]
[1693417162561,16.49718065,1705.4,1705.2,0.51160626]
[1693417163061,16.49718065,1705.4,1705.3,0.00364093]
[1693417164137,16.49718065,1705.4,1705.1,2.4253]
[1693417164338,16.49718065,1705.4,1705.1,3.996828]
[1693417164958,16.49718065,1705.4,1705.2,0.0036505]
[1693417165964,16.49718065,1705.4,1705.1,2.4253]
[1693417167036,16.49718065,1705.4,1705.2,0.0036505]
[1693417168051,16.49718065,1705.4,1705.1,2.4253]
[1693417168933,16.49718065,1705.4,1705.2,0.0036505]
[1693417169930,16.49718065,1705.4,1705.1,2.4253]
[1693417170132,16.49718065,1705.4,1705.1,3.996828]
[1693417171073,16.49718065,1705.4,1705.2,0.0036505]
[1693417172049,16.49718065,1705.4,1705.1,2.4253]
[1693417173071,16.49718065,1705.4,1705.2,0.0036505]
[1693417174079,16.49718065,1705.4,1705.1,2.4253]
[1693417174254,16.49718065,1705.4,1705.1,3.996823]
[1693417175189,16.49718065,1705.4,1705.2,0.0036505]
[1693417175948,16.49718065,1705.4,1705.1,2.4253]
[1693417176976,16.49718065,1705.4,1705.2,0.0036505]
[1693417177879,16.49718065,1705.4,1705.3,0.76562256]
[1693417178675,16.49718065,1705.4,1705.1,8.29004]
[1693417178876,16.49718065,1705.4,1705.2,0.74235989]
[1693417179178,16.49718065,1705.4,1705.2,0.0036505]
[1693417180084,16.49718065,1705.4,1705.1,14.15478]
[1693417180085,16.49718065,1705.4,1705.1,8.29004]
[1693417181047,16.49718065,1705.4,1705.2,0.0036505]
[1693417182074,16.49718065,1705.4,1705.1,8.2899]
[1693417182941,16.49718065,1705.4,1705.2,0.0036505]
[1693417184048,16.49718065,1705.4,1705.1,8.2899]
[1693417184344,16.49718065,1705.4,1705.1,9.861396]
[1693417185063,17.72929928,1705.4,1705.2,0.0036505]
[1693417185987,17.72929928,1705.4,1705.1,9.861396]
[1693417186788,16.49718065,1705.4,1705.1,9.861396]
[1693417186988,16.49718065,1705.4,1705.2,0.0036505]
[1693417187987,11.7278,1705.4,1705.2,0.98650465]
[1693417188290,7.09556863,1705.5,1705.2,6.85082465]
[1693417188499,1.23211863,1705.6,1705.3,1.435]
[1693417188712,7.09482863,1705.7,1705.4,11.72744]
[1693417188884,9.96830928,1705.7,1705.5,1.172744]
[1693417189092,9.96830928,1705.7,1705.5,7.03967581]
[1693417189290,9.96830928,1705.7,1705.5,9.45957581]
[1693417189595,8.73619065,1705.7,1705.5,9.45957581]
[1693417192781,8.73619065,1705.7,1705.6,0.50901787]
[1693417193101,8.73619065,1705.7,1705.6,0.51263012]
[1693417201116,18.27059271,1705.7,1705.6,0.51263012]
[1693417201328,24.13330271,1705.7,1705.6,0.51263012]
[1693417201482,25.36542134,1705.7,1705.6,0.00361225]
[1693417201916,25.36542134,1705.7,1705.6,0.62138085]
[1693417202225,25.36542134,1705.7,1705.6,0.6177686]
[1693417202519,25.36542134,1705.7,1705.2,2.5862]
[1693417202717,11.7269,1705.5,1705.2,2.5862]
[1693417203023,8.73728065,1705.4,1705.3,0.00364093]
[1693417204935,2.87348065,1705.4,1705.3,0.00364093]
[1693417205246,2.87348065,1705.4,1705.3,5.86771093]
[1693417205428,11.72581,1705.7,1705.3,11.73178093]
[1693417205620,8.73633065,1705.7,1705.4,0.58677109]
[1693417205958,8.73633065,1705.7,1705.4,8.96911109]
[1693417206107,14.59928065,1705.7,1705.5,0.00543012]
[1693417207543,14.59928065,1705.7,1705.6,0.80817368]
[1693417210106,14.59928065,1705.7,1705.6,0.81358878]
[1693417215351,23.10767089,1705.7,1705.6,0.81358878]
[1693417215941,24.33978952,1705.7,1705.6,0.81358878]
[1693417218767,25.77478952,1705.7,1705.6,0.81358878]
[1693417225175,24.33978952,1705.7,1705.6,0.81358878]
[1693417227572,15.83139928,1705.7,1705.6,0.81358878]
[1693417227773,14.59928065,1705.7,1705.6,0.81358878]
[1693417230861,15.83139928,1705.7,1705.6,0.81358878]
[1693417231970,15.83139928,1705.7,1705.6,0.50333915]
[1693417232164,15.83139928,1705.7,1705.6,0.5016494]
[1693417234587,24.16091052,1705.7,1705.6,0.5016494]
[1693417234794,25.59591052,1705.7,1705.6,0.5016494]
[1693417240894,27.13276366,1705.7,1705.6,0.5016494]
[1693417241090,25.90064503,1705.7,1705.6,0.5016494]
[1693417247222,29.68801566,1705.7,1705.6,0.5016494]
[1693417247419,29.68801566,1705.7,1705.6,0.00372535]
[1693417248093,29.68801566,1705.7,1705.2,2.4804]
[1693417248296,1.23204514,1705.5,1705.2,2.4804]
[1693417248495,20.46464065,1705.4,1705.2,2.4804]
[1693417249023,1.435,1705.3,1705.0,1.5334]
[1693417249224,14.60230065,1705.2,1705.0,2.3404]
[1693417249527,8.73789065,1705.2,1705.0,2.3404]
[1693417249916,14.60230065,1705.2,1705.0,2.3404]
[1693417252132,14.60230065,1705.2,1705.1,0.00362191]
[1693417252699,8.73789065,1705.2,1705.1,0.70038991]
[1693417257109,14.60230065,1705.2,1705.1,0.70038991]
[1693417262725,20.46671065,1705.2,1705.1,0.70038991]
[1693417262934,14.60230065,1705.2,1705.1,0.70038991]
[1693417271443,20.46671065,1705.2,1705.1,0.70038991]
[1693417272550,17.06886189,1705.2,1705.1,0.70038991]
[1693417272924,22.93327189,1705.2,1705.1,0.70038991]
[1693417273332,17.06886189,1705.2,1705.1,0.70038991]
[1693417274162,22.93327189,1705.2,1705.1,0.70038991]
[1693417274322,24.36827189,1705.2,1705.1,0.70038991]
[1693417302899,6.77504189,1705.2,1705.1,0.70038991]
[1693417303104,21.90171065,1705.2,1705.1,0.70038991]
[1693417304602,20.46671065,1705.2,1705.1,0.70038991]
[1693417304783,14.60230065,1705.2,1705.1,0.70038991]
[1693417306904,20.46671065,1705.2,1705.1,0.70038991]
[1693417307510,14.60230065,1705.2,1705.1,0.70038991]
[1693417307727,14.60230065,1705.2,1705.1,1.0146889]
[1693417307927,11.72863,1705.3,1705.1,1.0146889]
[1693417308223,14.60211065,1705.3,1705.1,1.0146889]
[1693417314011,20.46642065,1705.3,1705.1,1.0146889]
[1693417324823,20.46642065,1705.3,1705.1,0.70038991]
[1693417326569,2.87348065,1705.2,1705.1,0.70038991]
[1693417326772,14.60230065,1705.2,1705.1,0.70038991]
[1693417331458,21.90171065,1705.2,1705.1,0.70038991]
[1693417334869,20.46671065,1705.2,1705.1,0.70038991]
[1693417335040,14.60230065,1705.2,1705.1,0.70038991]
[1693417340580,16.82474272,1705.2,1705.1,0.70038991]
[1693417341581,14.60230065,1705.2,1705.1,0.70038991]
[1693417350005,11.72882,1705.2,1705.1,0.70038991]
[1693417350502,5.86441,1705.2,1705.1,0.70038991]
[1693417355323,5.8247284,1705.2,1705.1,0.70038991]
[1693417356392,11.6891384,1705.2,1705.1,0.70038991]
[1693417360240,23.71824832,1705.2,1705.1,0.70038991]
[1693417360721,22.48641793,1705.2,1705.1,0.70038991]
[1693417361422,14.56261905,1705.2,1705.1,0.70038991]
[1693417362134,11.6891384,1705.2,1705.1,0.70038991]
[1693417368908,5.8247284,1705.2,1705.1,0.70038991]
[1693417369124,7.09595039,1705.3,1705.1,0.70038991]
[1693417369455,15.83371104,1705.3,1705.1,0.70038991]
[1693417370563,9.96943104,1705.3,1705.1,6.56512991]
[1693417370724,9.96943104,1705.3,1705.2,0.65651299]
[1693417370928,8.73760065,1705.3,1705.2,0.65651299]
[1693417371122,8.73760065,1705.3,1705.2,1.46360936]
[1693417372242,8.73760065,1705.3,1705.2,0.80709637]
[1693417406431,9.96977599,1705.3,1705.2,0.80709637]
[1693417414720,15.83405599,1705.3,1705.2,0.80709637]
[1693417432486,12.96057534,1705.3,1705.2,0.80709637]
[1693417432784,7.09629534,1705.3,1705.2,0.80709637]
[1693417440002,1.23217534,1705.3,1705.2,0.80709637]
[1693417440191,1.23217534,1705.3,1705.2,1.47427501]
[1693417440551,14.50018452,1705.4,1705.2,1.47427501]
[1693417440699,17.37366517,1705.4,1705.2,1.47427501]